[Event "FRA-ch Youth U18W 2019"]
[Site "Hyeres"]
[Date "2019.04.16"]
[Round "4.2"]
[White "Spano, Aline"]
[Black "Bellahcene, Meriem"]
[Result "0-1"]
[ECO "B07"]
[WhiteElo "1419"]
[BlackElo "1883"]
[Annotator "NA"]
[PlyCount "132"]
[EventDate "2019.04.14"]
[EventType "swiss"]
[EventCountry "FRA"]
[SourceTitle "playchess.com"]
[Source "ChessBase"]
[SourceQuality "1"]
[TimeControl "5400+30"]

1. e4 {[%emt 0:00:00]} d6 {[%emt 0:00:00]} 2. d4 {[%emt 0:00:31]} Nf6 {[%emt 0:00:00]} 3. Nc3 {[%emt 0:04:15]} Nbd7 {[%emt 0:00:04]} 4. Be3 {[%emt 0:03:43]} e5 {[%emt 0:00:15]} 5. Bc4 {[%emt 0:01:34]} Be7 {[%emt 0:01:57]} 6. h3 {[%emt 0:03:29]} a6 {[%emt 0:03:17]} 7. a4 {[%emt 0:00:53]} b6 {[%emt 0:00:16]} 8. Qf3 {[%emt 0:10:11]} O-O {[%emt 0:08:24]} 9. Nge2 {[%emt 0:08:53]} Bb7 {[%emt 0:01:27]} 10. O-O {[%emt 0:02:39]} c6 {[%emt 0:15:29]} 11. Ng3 {[%emt 0:08:38]} b5 {[%emt 0:04:03]} 12. axb5 {[%emt 0:02:06]} axb5 {[%emt 0:00:43]} 13. Bd3 {[%emt 0:00:30]} b4 {[%emt 0:03:11]} 14. Nce2 {[%emt 0:00:53]} exd4 {[%emt 0:01:28]} 15. Bxd4 {[%emt 0:02:26]} c5 {[%emt 0:02:12]} 16. Be3 {[%emt 0:04:38]} Ne5 {[%emt 0:00:23]} 17. Qf4 {[%emt 0:01:26]} c4 {[%emt 0:00:36]} 18. Rad1 {[%emt 0:04:04]} cxd3 {[%emt 0:00:29]} 19. cxd3 {[%emt 0:00:07]} Ba6 {[%emt 0:07:45]} 20. Nc1 {[%emt 0:05:28]} Ng6 {[%emt 0:06:36]} 21. Qf3 {[%emt 0:04:57]} d5 {[%emt 0:03:28]} 22. Nf5 {[%emt 0:08:04]} dxe4 {[%emt 0:08:37]} 23. dxe4 {[%emt 0:00:33]} Qc7 {[%emt 0:00:52]} 24. Rfe1 {[%emt 0:01:13]} Nd7 {[%emt 0:09:30]} 25. Nxe7+ {[%emt 0:07:08]} Nxe7 {[%emt 0:00:04]} 26. Bf4 {[%emt 0:00:40]} Qb7 {[%emt 0:02:39]} 27. Nb3 {[%emt 0:07:35]} Nc6 {[%emt 0:01:41]} 28. Qg3 {[%emt 0:03:22]} Rfe8 {[%emt 0:04:39]} 29. Bh6 {[%emt 0:01:05]} g6 {[%emt 0:00:01]} 30. Qd6 {[%emt 0:00:17]} Nf8 {[%emt 0:06:08]} 31. Nc5 {[%emt 0:00:38]} Qe7 {[%emt 0:00:26]} 32. Qxc6 {[%emt 0:00:22]} Rec8 {[%emt 0:00:03]} 33. Bxf8 {[%emt 0:03:30]} Qxf8 {[%emt 0:00:23]} 34. Qb6 {[%emt 0:00:40]} Rxc5 {[%emt 0:01:32]} 35. Qxb4 {[%emt 0:00:29]} Rb5 {[%emt 0:00:01]} 36. Qc3 {[%emt 0:00:20]} Rab8 {[%emt 0:01:51]} 37. Rd2 {[%emt 0:00:38]} Qc8 {[%emt 0:01:37]} 38. Qf6 {[%emt 0:00:28]} Qe6 {[%emt 0:00:57]} 39. Rd8+ {[%emt 0:00:36]} Rxd8 {[%emt 0:00:02]} 40. Qxd8+ {[%emt 0:00:01]} Kg7 {[%emt 0:00:00]} 41. Qd4+ {[%emt 0:00:01]} Qe5 {[%emt 0:00:03]} 42. Qa7 {[%emt 0:00:42]} Bb7 {[%emt 0:00:27]} 43. Re2 {[%emt 0:01:15]} Rxb2 {[%emt 0:00:59]} 44. Rxb2 {[%emt 0:00:17]} Qxb2 {[%emt 0:00:01]} 45. f3 {[%emt 0:00:01]} Qb4 {[%emt 0:01:23]} 46. Kh2 {[%emt 0:00:27]} Qd6+ {[%emt 0:00:15]} 47. Kg1 {[%emt 0:00:29]} Bc6 {[%emt 0:00:12]} 48. Qa1+ {[%emt 0:00:40]} Qf6 {[%emt 0:00:01]} 49. Qxf6+ {[%emt 0:00:28]} Kxf6 {[%emt 0:00:05]} 50. Kf2 {[%emt 0:00:06]} Ke5 {[%emt 0:00:13]} 51. Ke3 {[%emt 0:00:14]} Bb5 {[%emt 0:03:18]} 52. f4+ {[%emt 0:00:40]} Ke6 {[%emt 0:00:14]} 53. g3 {[%emt 0:00:21]} Bf1 {[%emt 0:00:56]} 54. h4 {[%emt 0:00:24]} h5 {[%emt 0:01:13]} 55. Kd4 {[%emt 0:01:13]} Bh3 {[%emt 0:00:30]} 56. Ke3 {[%emt 0:00:51]} Kd6 {[%emt 0:00:12]} 57. Kd4 {[%emt 0:00:19]} Be6 {[%emt 0:00:15]} 58. e5+ {[%emt 0:00:59]} Kc6 {[%emt 0:00:06]} 59. Ke4 {[%emt 0:00:14]} Kc5 {[%emt 0:00:08]} 60. Ke3 {[%emt 0:00:23]} Kc4 {[%emt 0:00:09]} 61. Ke4 {[%emt 0:00:32]} Bf5+ {[%emt 0:00:00]} 62. Ke3 {[%emt 0:00:01]} Kd5 {[%emt 0:00:11]} 63. Kf3 {[%emt 0:00:29]} Kd4 {[%emt 0:00:02]} 64. Kf2 {[%emt 0:00:28]} Bg4 {[%emt 0:00:16]} 65. Kg2 {[%emt 0:01:13]} Ke3 {[%emt 0:00:01]} 66. Kg1 {[%emt 0:00:42]} Kf3 {[%emt 0:08:44]} 0-1

[Event "FRA-ch Youth U18W 2019"]
[Site "Hyeres"]
[Date "2019.04.17"]
[Round "5.1"]
[White "Belluire, Beatrice"]
[Black "Bellahcene, Meriem"]
[Result "0-1"]
[ECO "B51"]
[WhiteElo "1870"]
[BlackElo "1883"]
[Annotator "NA RC"]
[PlyCount "114"]
[EventDate "2019.04.14"]
[EventType "swiss"]
[EventCountry "FRA"]
[SourceTitle "playchess.com"]
[Source "ChessBase"]
[SourceQuality "1"]
[TimeControl "5400+30"]

1. e4 {[%emt 0:00:00]} c5 {[%emt 0:00:00]} 2. Nf3 {[%emt 0:00:00]} Nc6 {[%emt 0:00:00]} 3. Bb5 {[%emt 0:00:00]} d6 {[%emt 0:00:00]} 4. O-O {[%emt 0:00:00]} Bd7 {[%emt 0:00:00]} 5. Re1 {[%emt 0:00:28]} Nf6 {[%emt 0:00:17]} 6. c3 {[%emt 0:00:22]} a6 {[%emt 0:00:23]} 7. Bc4 {[%emt 0:00:32]} Bg4 {[%emt 0:00:48]} 8. d4 {[%emt 0:10:17]} cxd4 {[%emt 0:00:11]} 9. cxd4 {[%emt 0:00:10]} Bxf3 {[%emt 0:00:13]} 10. gxf3 {[%emt 0:00:14]} Rc8 {[%emt 0:00:13]} 11. Be3 {[%emt 0:17:32]} e6 {[%emt 0:02:01]} 12. a4 {[%emt 0:04:47]} Be7 {[%emt 0:09:22]} 13. Bf1 {[%emt 0:00:50]} O-O {[%emt 0:02:09]} 14. Nc3 {[%emt 0:02:35]} Qa5 {[%emt 0:05:23]} 15. Rc1 {[%emt 0:04:46]} Qh5 {[%emt 0:02:50]} 16. Kh1 {[%emt 0:03:08]} Na5 {[%emt 0:19:33]} 17. b3 {[%emt 0:05:28]} Nc6 {[%emt 0:03:56]} 18. Be2 {[%emt 0:00:50]} Qa5 {[%emt 0:08:33]} 19. Rg1 {[%emt 0:01:26]} Ne8 {[%emt 0:00:59]} 20. d5 {[%emt 0:06:23]} Ne5 {[%emt 0:09:15]} 21. Qd2 {[%emt 0:08:17]} Ng6 {[%emt 0:07:13]} 22. dxe6 {[%emt 0:11:41]} fxe6 {[%emt 0:00:09]} 23. Nd5 {[%emt 0:06:28]} Qxd2 {[%emt 0:01:54]} 24. Nxe7+ {[%emt 0:00:10]} Nxe7 25. Bxd2 {[%emt 0:00:07]} Rxc1 {[%emt 0:09:01]} 26. Bxc1 {[%emt 0:00:30]} e5 {[%emt 0:02:36]} 27. Rd1 {[%emt 0:05:39]} Nc6 {[%emt 0:01:45]} 28. Bb2 {[%emt 0:00:20]} Rf6 {[%emt 0:00:46]} 29. Bc4+ {[%emt 0:00:26]} Kf8 {[%emt 0:00:07]} 30. Kg2 {[%emt 0:00:06]} Ke7 {[%emt 0:00:35]} 31. Bc3 {[%emt 0:00:25]} Nc7 {[%emt 0:01:02]} 32. Bd5 {[%emt 0:01:27]} Ne6 {[%emt 0:05:01]} 33. Bb2 {[%emt 0:06:36]} Nf4+ {[%emt 0:02:12]} 34. Kf1 {[%emt 0:00:00]} Rg6 {[%emt 0:00:41]} 35. Bc1 {[%emt 0:00:45]} Nh3 {[%emt 0:01:29]} 36. Be3 {[%emt 0:01:35]} Ng1 {[%emt 0:02:50]} 37. f4 {[%emt 0:00:48]} Nf3 {[%emt 0:00:04]} 38. f5 {[%emt 0:00:46]} Rg1+ {[%emt 0:02:07]} 39. Ke2 {[%emt 0:00:01]} Rxd1 {[%emt 0:00:07]} 40. Kxd1 {[%emt 0:00:02]} Nxh2 {[%emt 0:00:12]} 41. Bg5+ {[%emt 0:00:59]} Kd7 {[%emt 0:00:04]} 42. Be6+ {[%emt 0:01:00]} Kc7 {[%emt 0:00:11]} 43. f4 {[%emt 0:02:08]} Nf3 {[%emt 0:01:35]} 44. f6 {[%emt 0:00:18]} gxf6 {[%emt 0:00:19]} 45. Bxf6 {[%emt 0:00:11]} exf4 {[%emt 0:00:18]} 46. Bd5 {[%emt 0:01:15]} h5 {[%emt 0:01:21]} 47. Ke2 {[%emt 0:00:24]} Nce5 {[%emt 0:00:20]} 48. b4 {[%emt 0:01:02]} h4 {[%emt 0:00:31]} 49. Kf1 {[%emt 0:00:10]} Ng4 {[%emt 0:01:44]} 50. Be7 {[%emt 0:00:40]} h3 {[%emt 0:01:14]} 51. Be6 {[%emt 0:00:31]} Ne3+ {[%emt 0:00:04]} 52. Kf2 {[%emt 0:00:25]} h2 {[%emt 0:00:07]} 53. Kxf3 {[%emt 0:00:13]} h1=Q+ {[%emt 0:00:06]} 54. Kxf4 {[%emt 0:00:07]} Qh6+ {[%emt 0:00:23]} 55. Bg5 {[%emt 0:00:08]} Qxe6 {[%emt 0:00:27]} 56. Kxe3 {[%emt 0:00:07]} Qb3+ {[%emt 0:00:11]} 57. Kf4 {[%emt 0:00:09]} Qxb4 {[%emt 0:00:09]} 0-1

[Event "FRA-ch Youth U18W 2019"]
[Site "Hyeres"]
[Date "2019.04.17"]
[Round "5.2"]
[White "Georget, Laureline"]
[Black "Lomandong, Noela-Joyce"]
[Result "1/2-1/2"]
[ECO "A86"]
[WhiteElo "1642"]
[BlackElo "1942"]
[Annotator "NA RC"]
[PlyCount "67"]
[EventDate "2019.04.14"]
[EventType "swiss"]
[EventCountry "FRA"]
[SourceTitle "playchess.com"]
[Source "ChessBase"]
[SourceQuality "1"]
[TimeControl "5400+30"]

1. c4 {[%emt 0:00:00]} e5 {[%emt 0:00:00]} 2. Nc3 {[%emt 0:00:00]} d6 {[%emt 0:00:00]} 3. g3 {[%emt 0:00:22]} g6 {[%emt 0:00:00]} 4. Bg2 {[%emt 0:00:17]} Bg7 {[%emt 0:00:00]} 5. e3 {[%emt 0:06:32]} f5 {[%emt 0:00:00]} 6. Nge2 {[%emt 0:01:31]} Nf6 {[%emt 0:01:30]} 7. O-O {[%emt 0:01:02]} O-O {[%emt 0:02:08]} 8. d4 {[%emt 0:03:29]} Qe8 {[%emt 0:08:25]} 9. b4 {[%emt 0:04:36]} g5 {[%emt 0:07:25]} 10. dxe5 {[%emt 0:17:34]} dxe5 {[%emt 0:00:54]} 11. Nd5 {[%emt 0:05:05]} Nxd5 {[%emt 0:01:07]} 12. Qxd5+ {[%emt 0:00:48]} Kh8 {[%emt 0:00:17]} 13. Bb2 {[%emt 0:01:29]} c6 {[%emt 0:00:57]} 14. Qd2 {[%emt 0:01:22]} Be6 {[%emt 0:07:28]} 15. c5 {[%emt 0:04:58]} Nd7 {[%emt 0:09:07]} 16. f4 {[%emt 0:04:32]} Rd8 {[%emt 0:09:35]} 17. Qc2 {[%emt 0:04:17]} Qh5 {[%emt 0:05:31]} 18. a4 {[%emt 0:06:01]} Kg8 {[%emt 0:44:36]} 19. Ra3 {[%emt 0:06:45]} Nf6 {[%emt 0:00:00]} 20. fxe5 {[%emt 0:04:09]} Ng4 {[%emt 0:00:00]} 21. h3 {[%emt 0:00:56]} Nxe5 {[%emt 0:00:00]} 22. Nd4 {[%emt 0:01:38]} Qg6 {[%emt 0:00:00]} 23. b5 {[%emt 0:03:38]} Nc4 {[%emt 0:00:00]} 24. Nxe6 {[%emt 0:04:55]} Qxe6 {[%emt 0:00:00]} 25. Bxg7 {[%emt 0:02:07]} Nxa3 {[%emt 0:00:00]} 26. Qc3 {[%emt 0:01:53]} Rf7 {[%emt 0:00:00]} 27. Bd4 {[%emt 0:00:45]} Nc4 {[%emt 0:00:00]} 28. Rc1 {[%emt 0:01:16]} Nxe3 {[%emt 0:02:10]} 29. Qxe3 {[%emt 0:01:54]} Qxe3+ {[%emt 0:02:22]} 30. Bxe3 {[%emt 0:00:03]} f4 {[%emt 0:01:28]} 31. gxf4 gxf4 32. Bf2 {[%emt 0:12:06]} f3 {[%emt 0:01:00]} 33. Bf1 {[%emt 0:00:30]} Rg7+ {[%emt 0:00:30]} 34. Kh2 {[%emt 0:00:00]} 1/2-1/2

[Event "FRA-ch Youth U18W 2019"]
[Site "Hyeres"]
[Date "2019.04.17"]
[Round "5.3"]
[White "Breysse, Astrid"]
[Black "Pucheu, Camille"]
[Result "0-1"]
[ECO "B76"]
[WhiteElo "1628"]
[BlackElo "1695"]
[Annotator "NA"]
[PlyCount "160"]
[EventDate "2019.04.14"]
[EventType "swiss"]
[EventCountry "FRA"]
[SourceTitle "playchess.com"]
[Source "ChessBase"]
[SourceQuality "1"]
[TimeControl "5400+30"]

1. e4 {[%emt 0:00:00]} c5 {[%emt 0:00:00]} 2. Nf3 {[%emt 0:00:00]} d6 {[%emt 0:00:10]} 3. d4 {[%emt 0:00:00]} cxd4 {[%emt 0:00:16]} 4. Nxd4 {[%emt 0:00:00]} Nf6 {[%emt 0:00:18]} 5. Nc3 {[%emt 0:00:06]} g6 {[%emt 0:00:16]} 6. Be3 {[%emt 0:00:37]} Bg7 {[%emt 0:00:25]} 7. f3 {[%emt 0:00:13]} O-O {[%emt 0:00:26]} 8. Qd2 {[%emt 0:00:05]} Nc6 {[%emt 0:00:27]} 9. O-O-O {[%emt 0:00:14]} Bd7 {[%emt 0:00:52]} 10. g4 {[%emt 0:01:34]} Ne5 {[%emt 0:08:15]} 11. h4 {[%emt 0:06:50]} h5 {[%emt 0:07:41]} 12. gxh5 {[%emt 0:07:09]} Nxh5 {[%emt 0:07:37]} 13. Be2 {[%emt 0:04:21]} Rc8 {[%emt 0:04:26]} 14. Kb1 {[%emt 0:09:50]} a6 {[%emt 0:06:13]} 15. Rdg1 {[%emt 0:05:22]} Nc4 {[%emt 0:04:34]} 16. Bxc4 {[%emt 0:01:56]} Rxc4 {[%emt 0:00:12]} 17. Nde2 {[%emt 1:00:13]} Be6 {[%emt 0:16:04]} 18. Bh6 {[%emt 0:00:00]} Qb6 {[%emt 0:06:21]} 19. Bxg7 {[%emt 0:00:00]} Kxg7 {[%emt 0:00:42]} 20. Qg5 {[%emt 0:00:00]} Rc5 {[%emt 0:17:41]} 21. Qg2 {[%emt 0:00:00]} Qc6 {[%emt 0:08:51]} 22. Nd4 {[%emt 0:00:00]} Qd7 {[%emt 0:00:27]} 23. a3 {[%emt 0:00:00]} Rfc8 {[%emt 0:01:39]} 24. Na4 {[%emt 0:00:00]} Rxc2 {[%emt 0:05:07]} 25. Nxc2 {[%emt 0:00:00]} Qxa4 {[%emt 0:00:07]} 26. Qd2 {[%emt 0:00:00]} Qb3 {[%emt 0:00:49]} 27. Kc1 {[%emt 0:00:00]} Nf4 {[%emt 0:01:45]} 28. Kd1 {[%emt 0:00:00]} Nd3 {[%emt 0:01:20]} 29. Rh2 {[%emt 0:00:00]} Nxb2+ {[%emt 0:00:19]} 30. Ke1 {[%emt 0:00:00]} Nd3+ {[%emt 0:00:19]} 31. Kf1 {[%emt 0:00:00]} Qb1+ {[%emt 0:00:30]} 32. Kg2 {[%emt 0:00:00]} Qxc2 {[%emt 0:00:04]} 33. Qxc2 {[%emt 0:00:00]} Rxc2+ {[%emt 0:00:04]} 34. Kg3 {[%emt 0:00:00]} Rxh2 {[%emt 0:00:40]} 35. Kxh2 {[%emt 0:00:00]} Ne5 {[%emt 0:00:38]} 36. Kg3 {[%emt 0:00:00]} Nc4 {[%emt 0:00:22]} 37. Rb1 {[%emt 0:00:00]} b5 {[%emt 0:00:15]} 38. Ra1 {[%emt 0:00:00]} d5 {[%emt 0:00:49]} 39. exd5 {[%emt 0:00:00]} Bxd5 {[%emt 0:00:04]} 40. Kf2 {[%emt 0:00:00]} e6 {[%emt 0:00:31]} 41. Ke2 {[%emt 0:00:00]} Kh6 {[%emt 0:01:16]} 42. Kf2 {[%emt 0:00:00]} Kh5 {[%emt 0:01:07]} 43. Kg3 {[%emt 0:00:00]} Ne5 {[%emt 0:00:33]} 44. f4 {[%emt 0:00:00]} Nd3 {[%emt 0:00:36]} 45. Rd1 {[%emt 0:00:00]} Nb2 {[%emt 0:00:21]} 46. Rd4 {[%emt 0:00:00]} Nc4 {[%emt 0:00:15]} 47. Rd3 {[%emt 0:00:00]} Kh6 {[%emt 0:00:30]} 48. Kg4 {[%emt 0:00:00]} f5+ {[%emt 0:00:26]} 49. Kh3 {[%emt 0:00:00]} Kg7 {[%emt 0:00:22]} 50. Rg3 {[%emt 0:00:00]} Kf6 {[%emt 0:00:31]} 51. Rd3 {[%emt 0:00:00]} Kf7 {[%emt 0:00:58]} 52. Kh2 {[%emt 0:01:42]} Kf6 {[%emt 0:00:41]} 53. Kh3 {[%emt 0:00:09]} Kf7 {[%emt 0:00:36]} 54. Kh2 {[%emt 0:00:11]} Kf6 {[%emt 0:00:21]} 55. Kh3 {[%emt 0:00:08]} Be4 {[%emt 0:00:23]} 56. Rc3 {[%emt 0:02:08]} e5 {[%emt 0:00:20]} 57. Kg3 {[%emt 0:00:18]} Ke6 {[%emt 0:00:38]} 58. a4 {[%emt 0:00:32]} Bc6 {[%emt 0:00:39]} 59. Rc2 {[%emt 0:00:31]} Be4 {[%emt 0:00:34]} 60. Rc3 {[%emt 0:00:18]} Bc6 {[%emt 0:00:38]} 61. Rc2 {[%emt 0:00:06]} Be4 {[%emt 0:00:19]} 62. Rc3 {[%emt 0:00:18]} Nb6 {[%emt 0:00:38]} 63. axb5 {[%emt 0:00:14]} axb5 {[%emt 0:00:03]} 64. Rc5 {[%emt 0:00:09]} exf4+ 65. Kxf4 {[%emt 0:00:09]} Nd5+ {[%emt 0:01:19]} 66. Kg5 {[%emt 0:00:38]} f4 {[%emt 0:00:41]} 67. Rxb5 {[%emt 0:00:06]} f3 {[%emt 0:00:19]} 68. Rb2 {[%emt 0:00:14]} Nc3 {[%emt 0:00:38]} 69. Kf4 {[%emt 0:01:18]} Kd5 {[%emt 0:00:32]} 70. Rd2+ {[%emt 0:01:21]} Ke6 {[%emt 0:00:21]} 71. Ke3 {[%emt 0:00:44]} Ke5 {[%emt 0:00:16]} 72. Kf2 {[%emt 0:00:26]} Kf4 {[%emt 0:00:24]} 73. Rd4 {[%emt 0:01:26]} Nd5 {[%emt 0:00:33]} 74. Rc4 {[%emt 0:00:37]} Ne3 {[%emt 0:00:27]} 75. Rd4 {[%emt 0:01:45]} Ng4+ {[%emt 0:00:16]} 76. Kf1 {[%emt 0:00:19]} Ke3 {[%emt 0:00:19]} 77. Ra4 {[%emt 0:00:29]} Bd3+ {[%emt 0:00:15]} 78. Kg1 {[%emt 0:01:00]} f2+ {[%emt 0:00:07]} 79. Kg2 {[%emt 0:00:09]} f1=Q+ {[%emt 0:00:12]} 80. Kg3 {[%emt 0:00:08]} Qf3# {[%emt 0:03:00]} 0-1

[Event "FRA-ch Youth U18W 2019"]
[Site "Hyeres"]
[Date "2019.04.17"]
[Round "5.4"]
[White "Tourneur, Cloe"]
[Black "Spano, Aline"]
[Result "1/2-1/2"]
[ECO "B18"]
[WhiteElo "1654"]
[BlackElo "1419"]
[Annotator "NA RC"]
[PlyCount "81"]
[EventDate "2019.04.14"]
[EventType "swiss"]
[EventCountry "FRA"]
[SourceTitle "playchess.com"]
[Source "ChessBase"]
[SourceQuality "1"]
[TimeControl "5400+30"]

1. e4 {[%emt 0:00:00]} c6 {[%emt 0:00:00]} 2. d4 {[%emt 0:00:00]} d5 {[%emt 0:00:00]} 3. Nc3 {[%emt 0:00:00]} dxe4 {[%emt 0:01:04]} 4. Nxe4 {[%emt 0:00:00]} h6 {[%emt 0:00:24]} 5. Nf3 {[%emt 0:00:28]} Bf5 {[%emt 0:01:36]} 6. Ng3 {[%emt 0:00:18]} Bh7 {[%emt 0:00:22]} 7. Bd3 {[%emt 0:00:22]} Bxd3 {[%emt 0:01:05]} 8. Qxd3 {[%emt 0:00:10]} Nf6 {[%emt 0:01:31]} 9. Bd2 {[%emt 0:01:44]} e6 {[%emt 0:03:18]} 10. O-O-O {[%emt 0:03:58]} Nbd7 {[%emt 0:03:17]} 11. Ne4 {[%emt 0:02:38]} Be7 {[%emt 0:01:46]} 12. Bf4 {[%emt 0:05:03]} Nb6 {[%emt 0:15:30]} 13. h3 {[%emt 0:03:55]} Nbd5 {[%emt 0:00:50]} 14. Nxf6+ {[%emt 0:07:22]} Bxf6 {[%emt 0:01:40]} 15. Be5 {[%emt 0:02:40]} Bxe5 {[%emt 0:17:13]} 16. Nxe5 {[%emt 0:06:08]} Qg5+ {[%emt 0:08:09]} 17. Kb1 {[%emt 0:01:14]} O-O {[%emt 0:13:46]} 18. g3 {[%emt 0:05:28]} Rfd8 {[%emt 0:00:31]} 19. f4 {[%emt 0:09:30]} Qe7 {[%emt 0:01:36]} 20. Rdf1 {[%emt 0:05:28]} c5 {[%emt 0:02:34]} 21. f5 {[%emt 0:09:53]} Nf6 {[%emt 0:03:58]} 22. fxe6 {[%emt 0:06:14]} Qxe6 {[%emt 0:00:53]} 23. Nf3 {[%emt 0:00:23]} Rac8 {[%emt 0:08:41]} 24. c3 {[%emt 0:05:10]} Qc6 {[%emt 0:04:31]} 25. Qe3 {[%emt 0:07:40]} Ne4 {[%emt 0:03:30]} 26. Ne5 {[%emt 0:01:55]} Qd5 {[%emt 0:00:32]} 27. Nxf7 {[%emt 0:04:24]} cxd4 {[%emt 0:00:16]} 28. cxd4 {[%emt 0:04:46]} Qxd4 {[%emt 0:01:25]} 29. Qe1 {[%emt 0:06:34]} Nd2+ {[%emt 0:01:03]} 30. Ka1 {[%emt 0:00:10]} Rf8 {[%emt 0:02:07]} 31. Rf4 {[%emt 0:01:09]} Qd7 {[%emt 0:01:14]} 32. Ne5 {[%emt 0:00:22]} Qd6 {[%emt 0:00:35]} 33. Rh2 {[%emt 0:00:41]} Rc2 {[%emt 0:00:54]} 34. Rxf8+ {[%emt 0:00:30]} Kxf8 {[%emt 0:00:06]} 35. Rf2+ {[%emt 0:00:14]} Kg8 {[%emt 0:00:23]} 36. Nf7 {[%emt 0:00:39]} Qc7 {[%emt 0:01:07]} 37. Qe8+ {[%emt 0:00:36]} Kh7 {[%emt 0:00:13]} 38. Ng5+ {[%emt 0:00:42]} hxg5 {[%emt 0:00:32]} 39. Qh5+ {[%emt 0:00:06]} Kg8 {[%emt 0:00:19]} 40. Qe8+ {[%emt 0:00:04]} Kh7 {[%emt 0:00:09]} 41. Qh5+ {[%emt 0:00:04]} 1/2-1/2

[Event "FRA-ch Youth U18W 2019"]
[Site "Hyeres"]
[Date "2019.04.18"]
[Round "6.1"]
[White "Bellahcene, Meriem"]
[Black "Pucheu, Camille"]
[Result "0-1"]
[ECO "B76"]
[WhiteElo "1883"]
[BlackElo "1695"]
[Annotator "NA"]
[PlyCount "74"]
[EventDate "2019.04.14"]
[EventType "swiss"]
[EventCountry "FRA"]
[SourceTitle "playchess.com"]
[Source "ChessBase"]
[SourceQuality "1"]
[TimeControl "5400+30"]

1. e4 {[%emt 0:00:00]} c5 {[%emt 0:00:00]} 2. Nf3 {[%emt 0:00:00]} d6 {[%emt 0:00:02]} 3. d4 {[%emt 0:00:00]} cxd4 {[%emt 0:00:09]} 4. Nxd4 {[%emt 0:00:00]} Nf6 {[%emt 0:00:09]} 5. Nc3 {[%emt 0:00:00]} g6 {[%emt 0:00:17]} 6. Be3 {[%emt 0:00:12]} Bg7 {[%emt 0:00:18]} 7. f3 {[%emt 0:00:23]} O-O {[%emt 0:00:44]} 8. Qd2 {[%emt 0:00:08]} Nc6 {[%emt 0:00:26]} 9. O-O-O {[%emt 0:00:10]} Bd7 {[%emt 0:00:36]} 10. g4 {[%emt 0:01:12]} Ne5 {[%emt 0:00:46]} 11. h4 {[%emt 0:00:48]} h5 {[%emt 0:00:59]} 12. gxh5 {[%emt 0:00:25]} Nxh5 {[%emt 0:01:01]} 13. Rg1 {[%emt 0:04:13]} Rc8 {[%emt 0:05:18]} 14. Be2 {[%emt 0:02:18]} Nc4 {[%emt 0:01:58]} 15. Bxc4 {[%emt 0:00:10]} Rxc4 {[%emt 0:00:07]} 16. Qe2 {[%emt 0:02:00]} b5 {[%emt 0:23:28]} 17. f4 {[%emt 0:15:22]} Nxf4 {[%emt 0:28:08]} 18. Bxf4 {[%emt 0:01:09]} Rxd4 {[%emt 0:01:38]} 19. h5 {[%emt 0:01:24]} Be8 {[%emt 0:13:38]} 20. Rh1 {[%emt 0:15:01]} b4 {[%emt 0:02:11]} 21. Nd5 {[%emt 0:01:04]} e6 {[%emt 0:00:36]} 22. Rxd4 {[%emt 0:55:01]} Bxd4 {[%emt 0:00:34]} 23. Nxb4 {[%emt 0:00:00]} Bxb2+ {[%emt 0:02:33]} 24. Kxb2 {[%emt 0:00:00]} Qf6+ {[%emt 0:00:08]} 25. c3 {[%emt 0:00:00]} Qxf4 {[%emt 0:00:17]} 26. Nd3 {[%emt 0:00:00]} Qg5 {[%emt 0:06:23]} 27. e5 {[%emt 0:00:00]} Bb5 {[%emt 0:03:42]} 28. Rh3 {[%emt 0:00:00]} Bxd3 {[%emt 0:01:38]} 29. Qxd3 {[%emt 0:00:00]} Rb8+ {[%emt 0:02:28]} 30. Kc2 {[%emt 0:00:00]} Qg2+ {[%emt 0:00:38]} 31. Kd1 {[%emt 0:00:00]} Rb2 {[%emt 0:01:07]} 32. Re3 {[%emt 0:00:00]} Rxa2 {[%emt 0:02:25]} 33. Re2 {[%emt 0:00:00]} Qg1+ {[%emt 0:00:21]} 34. Re1 {[%emt 0:00:00]} Ra1+ {[%emt 0:00:05]} 35. Kc2 {[%emt 0:00:00]} Qxe1 {[%emt 0:00:10]} 36. hxg6 {[%emt 0:00:00]} Qc1+ {[%emt 0:00:24]} 37. Kb3 {[%emt 0:00:00]} Qb1+ {[%emt 0:00:36]} 0-1

[Event "FRA-ch Youth U18W 2019"]
[Site "Hyeres"]
[Date "2019.04.18"]
[Round "6.3"]
[White "Lomandong, Noela-Joyce"]
[Black "Tourneur, Cloe"]
[Result "1-0"]
[ECO "A07"]
[WhiteElo "1942"]
[BlackElo "1654"]
[Annotator "NA"]
[PlyCount "77"]
[EventDate "2019.04.14"]
[EventType "swiss"]
[EventCountry "FRA"]
[SourceTitle "playchess.com"]
[Source "ChessBase"]
[SourceQuality "1"]
[TimeControl "5400+30"]

1. Nf3 {[%emt 0:00:00]} d5 {[%emt 0:00:00]} 2. g3 {[%emt 0:00:00]} Nf6 {[%emt 0:00:00]} 3. Bg2 {[%emt 0:00:00]} Bg4 {[%emt 0:00:16]} 4. b3 {[%emt 0:01:26]} e6 {[%emt 0:01:04]} 5. Bb2 {[%emt 0:00:13]} Be7 {[%emt 0:00:41]} 6. d3 {[%emt 0:00:09]} Nbd7 {[%emt 0:01:13]} 7. Nbd2 {[%emt 0:01:03]} O-O {[%emt 0:00:44]} 8. c4 {[%emt 0:04:30]} c6 {[%emt 0:01:50]} 9. Qc2 {[%emt 0:01:39]} a5 {[%emt 0:03:01]} 10. O-O {[%emt 0:13:30]} Re8 {[%emt 0:03:39]} 11. h3 {[%emt 0:08:47]} Bh5 {[%emt 0:04:23]} 12. a3 {[%emt 0:04:36]} Bd6 {[%emt 0:02:41]} 13. e4 {[%emt 0:02:59]} dxe4 {[%emt 0:02:45]} 14. dxe4 {[%emt 0:02:15]} e5 {[%emt 0:01:02]} 15. Bc3 {[%emt 0:56:23]} Qe7 {[%emt 0:05:32]} 16. Bb2 {[%emt 0:00:00]} Rec8 {[%emt 0:07:27]} 17. Nh4 {[%emt 0:01:00]} Qe6 {[%emt 0:07:40]} 18. Nf5 {[%emt 0:00:00]} Bf8 {[%emt 0:04:19]} 19. Qc3 {[%emt 0:00:00]} b5 {[%emt 0:02:54]} 20. g4 {[%emt 0:00:00]} Bg6 {[%emt 0:00:50]} 21. Rfe1 {[%emt 0:00:00]} h5 {[%emt 0:09:59]} 22. Qg3 {[%emt 0:00:00]} Re8 {[%emt 0:04:27]} 23. Nf3 {[%emt 0:00:00]} bxc4 {[%emt 0:05:58]} 24. Ng5 {[%emt 0:00:00]} Nxe4 {[%emt 0:04:27]} 25. Bxe4 {[%emt 0:00:00]} Qf6 {[%emt 0:00:25]} 26. Nf3 {[%emt 0:00:00]} cxb3 {[%emt 0:00:52]} 27. Rac1 {[%emt 0:00:00]} Rac8 {[%emt 0:00:47]} 28. Bb1 {[%emt 0:00:00]} Bd6 {[%emt 0:05:11]} 29. Nxd6 {[%emt 0:00:00]} Qxd6 {[%emt 0:00:30]} 30. Rcd1 {[%emt 0:00:00]} Qe7 {[%emt 0:04:33]} 31. Bxg6 {[%emt 0:00:00]} fxg6 {[%emt 0:00:09]} 32. Nxe5 {[%emt 0:00:00]} Nxe5 {[%emt 0:00:50]} 33. Rxe5 {[%emt 0:00:00]} Qf7 {[%emt 0:04:33]} 34. gxh5 {[%emt 0:00:00]} Rxe5 {[%emt 0:01:20]} 35. Bxe5 {[%emt 0:00:00]} gxh5 {[%emt 0:01:48]} 36. Rd6 {[%emt 0:00:08]} Kh7 {[%emt 0:01:15]} 37. Qd3+ {[%emt 0:00:47]} Kh8 {[%emt 0:01:34]} 38. Rh6+ {[%emt 0:00:52]} Kg8 {[%emt 0:00:23]} 39. Rg6 {[%emt 0:01:16]} 1-0